bitfinex-derivatives/quotes_BTCF0:USTF0_20251210
["timestamp","ask_amount","ask_price","bid_price","bid_amount"]
[1765339232041,0.09845766,92469.0,92468.0,0.00216224]
[1765339243862,0.0680052,92455.0,92454.0,0.05514]
[1765339245462,0.0690052,92455.0,92454.0,0.05614]
[1765339245759,0.09248551,92455.0,92454.0,0.05614]
[1765339245961,0.09348551,92455.0,92454.0,0.05714]
[1765339246761,0.08267031,92455.0,92454.0,0.05714]
[1765339248367,0.02548031,92455.0,92454.0,0.05714]
[1765339248552,0.002,92455.0,92454.0,0.14714]
[1765339249655,0.002,92455.0,92454.0,0.56714]
[1765339250667,0.002,92455.0,92454.0,0.47714]
[1765339250866,0.03069,92455.0,92454.0,0.23714]
[1765339252769,0.05417914,92455.0,92454.0,0.23714]
[1765339253471,0.08267914,92455.0,92454.0,0.23714]
[1765339255268,0.05919,92455.0,92454.0,0.23714]
[1765339255570,0.08268556,92455.0,92454.0,0.23714]
[1765339260569,0.08268556,92455.0,92454.0,0.48714]
[1765339264367,0.08268556,92455.0,92454.0,0.05714]
[1765339272674,0.08268556,92455.0,92454.0,0.05851]
[1765339278283,0.08268556,92455.0,92454.0,0.002]
[1765339278582,0.08268556,92455.0,92454.0,0.02976]
[1765339278783,0.08268556,92455.0,92454.0,0.0592]
[1765339281394,0.05418556,92455.0,92454.0,0.0592]
[1765339281581,0.08275556,92455.0,92454.0,0.0592]
[1765339286278,0.09357076,92455.0,92454.0,0.0592]
[1765339286890,0.08275556,92455.0,92454.0,0.0592]
[1765339287598,0.09357076,92455.0,92454.0,0.0592]
[1765339290191,0.09357076,92455.0,92454.0,0.02976]
[1765339290393,0.09357076,92455.0,92454.0,0.05962]
[1765339293097,0.09357076,92455.0,92454.0,0.002]
[1765339295297,0.09357076,92455.0,92454.0,0.03064]
[1765339296099,0.09357076,92455.0,92454.0,0.0713153]
[1765339305908,0.09357076,92455.0,92454.0,0.0605]
[1765339306906,0.09357076,92455.0,92454.0,0.0713153]
[1765339307805,0.09357076,92455.0,92454.0,0.03064]
[1765339308007,0.09357076,92455.0,92454.0,0.002]
[1765339310704,0.09357076,92455.0,92454.0,0.03064]
[1765339310910,0.09357076,92455.0,92454.0,0.002]
[1765339311915,0.09357076,92455.0,92454.0,0.03064]
[1765339312112,0.09357076,92455.0,92454.0,0.002]
[1765339320012,0.09357076,92455.0,92454.0,0.03198]
[1765339320213,0.09357076,92455.0,92454.0,0.002]
[1765339327218,0.0678157,92450.0,92449.0,0.00012043]
[1765339327421,0.09131126,92450.0,92449.0,0.00012043]
[1765339328819,0.09131126,92450.0,92449.0,0.02716043]
[1765339329019,0.09231126,92450.0,92449.0,0.03016043]
[1765339329222,0.09231126,92450.0,92449.0,0.05800043]
[1765339329618,0.09331126,92450.0,92449.0,0.06100043]
[1765339332931,0.09331126,92450.0,92449.0,0.03316043]
[1765339333226,0.09331126,92450.0,92449.0,0.06100043]
[1765339345637,0.10997126,92450.0,92449.0,0.06100043]
[1765339362051,0.06362126,92450.0,92449.0,0.06100043]
[1765339362347,0.05280556,92450.0,92449.0,0.06100043]
[1765339362851,0.02549556,92450.0,92449.0,0.06100043]
[1765339363954,0.05549556,92450.0,92449.0,0.06100043]
[1765339365549,0.08299556,92450.0,92449.0,0.06100043]
[1765339375658,0.10049556,92450.0,92449.0,0.06100043]
[1765339376053,0.10049556,92450.0,92449.0,0.07181633]
[1765339380467,0.08299556,92450.0,92449.0,0.07181633]
[1765339380666,0.02549556,92450.0,92449.0,0.45181633]
[1765339380966,0.02549556,92450.0,92449.0,0.51022584]
[1765339381168,0.02563114,92450.0,92449.0,0.51022584]
[1765339381367,0.002,92450.0,92449.0,0.45181633]
[1765339381863,0.03033,92450.0,92449.0,0.45181633]
[1765339382069,0.03033,92450.0,92449.0,0.51022584]
[1765339382572,0.002,92450.0,92449.0,0.45181633]
[1765339383062,0.03033,92450.0,92449.0,0.45181633]
[1765339384966,0.002,92450.0,92449.0,0.45181633]
[1765339386567,0.03033,92450.0,92449.0,0.45181633]
[1765339386958,0.05872,92450.0,92449.0,0.45181633]
[1765339387171,0.09316367,92450.0,92449.0,0.45181633]
[1765339393378,0.02562797,92450.0,92449.0,0.45181633]
[1765339393675,0.05526797,92450.0,92449.0,0.45181633]
[1765339394673,0.02562797,92450.0,92449.0,0.45181633]
[1765339394974,0.08365797,92450.0,92449.0,0.45181633]
[1765339397685,0.08365797,92450.0,92449.0,0.51022584]
[1765339397686,0.002,92450.0,92449.0,0.51022584]
[1765339397877,0.002,92450.0,92449.0,0.45181633]
[1765339398269,0.002,92450.0,92449.0,0.51022584]
[1765339398470,0.02551325,92450.0,92449.0,0.45181633]
[1765339399179,0.05515325,92450.0,92449.0,0.45181633]
[1765339401282,0.02551325,92450.0,92449.0,0.45181633]
[1765339401479,0.05515325,92450.0,92449.0,0.45181633]
[1765339402280,0.02551325,92450.0,92449.0,0.45181633]
[1765339406681,0.00016224,92464.0,92463.0,0.07309]
[1765339406876,0.00016224,92464.0,92463.0,0.57309]
[1765339407075,0.00016224,92464.0,92463.0,0.49309]
[1765339407889,0.00416224,92464.0,92463.0,0.49409]
[1765339408986,0.00616224,92464.0,92463.0,0.49509]
[1765339409587,0.17179796,92480.0,92479.0,0.05812]
[1765339409787,0.0852623,92480.0,92479.0,0.05812]
[1765339410891,0.0902623,92480.0,92479.0,0.0699323]
[1765339411874,0.0902623,92480.0,92479.0,0.001]
[1765339412077,0.0902623,92480.0,92470.0,0.00016224]
[1765339412078,0.0673833,92471.0,92470.0,0.00016224]
[1765339413581,0.0703833,92471.0,92470.0,0.00116224]
[1765339413891,0.0733833,92471.0,92470.0,0.00216224]
[1765339418391,0.06257,92471.0,92449.0,0.00012043]
[1765339418581,0.0673857,92450.0,92449.0,0.06824043]
[1765339419595,0.0673857,92450.0,92449.0,0.06924043]
[1765339419779,0.0683857,92450.0,92449.0,0.07324043]
[1765339420185,0.05757,92450.0,92449.0,0.07324043]
[1765339421194,0.05757,92450.0,92449.0,0.07224043]
[1765339421406,0.05857,92450.0,92449.0,0.07524043]
[1765339421696,0.002,92450.0,92449.0,0.07524043]
[1765339421899,0.0291,92450.0,92449.0,0.07524043]
[1765339422886,0.002,92450.0,92449.0,0.07524043]
[1765339423194,0.0291,92450.0,92449.0,0.07524043]
[1765339423786,0.05857,92450.0,92449.0,0.07524043]
[1765339426696,0.002,92450.0,92449.0,0.07524043]
[1765339427798,0.002,92450.0,92449.0,0.51524043]
[1765339437316,0.00016224,92459.0,92458.0,0.0667448]
[1765339437608,0.08133472,92459.0,92458.0,0.0667448]
[1765339438508,0.08233472,92459.0,92458.0,0.05693]
[1765339439406,0.08233472,92459.0,92458.0,0.05793]
[1765339439608,0.08333472,92459.0,92458.0,0.05793]
[1765339441707,0.08333472,92459.0,92458.0,0.002]
[1765339456520,0.08333472,92459.0,92458.0,0.05988]
[1765339461717,0.08333472,92459.0,92458.0,0.0706948]
[1765339465423,0.02542472,92459.0,92458.0,0.0706948]
[1765339465616,0.02542472,92459.0,92458.0,0.5006948]
[1765339465924,0.02542472,92459.0,92458.0,0.5806948]
[1765339466124,0.02397636,92459.0,92458.0,0.5806948]
[1765339466323,0.0583966,92477.0,92458.0,0.5806948]
[1765339466324,0.05511,92477.0,92476.0,0.05635]
[1765339466829,0.02792,92480.0,92468.0,0.06914479]
[1765339467128,0.00016224,92483.0,92482.0,0.067162]
[1765339468027,0.00016224,92483.0,92482.0,0.147162]
[1765339468229,0.0010812,92490.0,92489.0,0.0671612]
[1765339468425,0.0010812,92490.0,92489.0,0.5671612]
[1765339468630,0.0167,92512.0,92510.0,0.05635]
[1765339468631,0.0659187,92511.0,92510.0,0.05635]
[1765339469722,0.0659187,92511.0,92510.0,0.05735]
[1765339469929,0.0689187,92511.0,92510.0,0.05735]
[1765339470927,0.0699187,92511.0,92510.0,0.05735]
[1765339471534,0.0679187,92511.0,92510.0,0.05635]
[1765339471726,0.0709187,92511.0,92510.0,0.05735]
[1765339472333,0.0689187,92511.0,92510.0,0.05735]
[1765339472525,0.0719187,92511.0,92510.0,0.05835]
[1765339475337,0.0689187,92511.0,92510.0,0.05735]
[1765339475537,0.0709187,92511.0,92510.0,0.05835]
[1765339479439,0.0709187,92511.0,92510.0,0.002]
[1765339480539,0.0709187,92511.0,92510.0,0.02901]
[1765339482642,0.0709187,92511.0,92510.0,0.05835]
[1765339484144,0.0709187,92511.0,92510.0,0.02901]
[1765339484638,0.0709187,92511.0,92510.0,0.05835]
[1765339485245,0.09365437,92511.0,92510.0,0.05835]
[1765339485633,0.0709187,92511.0,92510.0,0.05835]
[1765339485839,0.06011,92511.0,92510.0,0.05835]
[1765339486140,0.005,92511.0,92510.0,0.05835]
[1765339487142,0.06011,92511.0,92510.0,0.05835]
[1765339488637,0.08285824,92511.0,92510.0,0.05835]
[1765339490644,0.02774824,92511.0,92510.0,0.05835]
[1765339491036,0.08285824,92511.0,92510.0,0.05835]
[1765339496844,0.08285824,92511.0,92510.0,0.02901]
[1765339497147,0.08285824,92511.0,92510.0,0.03066]
[1765339497536,0.08285824,92511.0,92510.0,0.06018]
[1765339503152,0.09366684,92511.0,92510.0,0.06018]
[1765339506550,0.09366684,92511.0,92510.0,0.002]
[1765339506749,0.09366684,92511.0,92510.0,0.03066]
[1765339506959,0.09366684,92511.0,92510.0,0.06018]
[1765339510646,0.09366684,92511.0,92510.0,0.002]
[1765339511154,0.09366684,92511.0,92510.0,0.05877]
[1765339516764,0.09366684,92511.0,92510.0,0.002]
[1765339517458,0.09366684,92511.0,92510.0,0.03104]
[1765339518567,0.09366684,92511.0,92510.0,0.05877]
[1765339526468,0.09386684,92511.0,92510.0,0.05877]
[1765339526874,0.02774824,92511.0,92510.0,0.05877]
[1765339527564,0.02774824,92511.0,92510.0,0.13877]
[1765339527764,0.00108091,92515.0,92514.0,0.05664]
[1765339527961,0.00016214,92520.0,92514.0,0.05664]
[1765339527962,0.00016214,92520.0,92519.0,0.0674477]
[1765339528168,0.0676446,92546.0,92545.0,0.05664]
[1765339528667,0.12602347,92546.0,92545.0,0.05664]
[1765339528872,0.0676446,92546.0,92545.0,0.05664]
[1765339529562,0.05684,92546.0,92545.0,0.05664]
[1765339529763,0.02945,92546.0,92545.0,0.05664]
[1765339529966,0.03245,92546.0,92545.0,0.05764]
[1765339530565,0.003,92546.0,92545.0,0.15849]
[1765339530870,0.005,92546.0,92545.0,0.15849]
[1765339531067,0.005,92546.0,92545.0,0.22849]
[1765339531266,0.005,92546.0,92545.0,0.48849]
[1765339531674,0.005,92546.0,92545.0,0.56849]
[1765339533376,0.005,92546.0,92545.0,0.14849]
[1765339533674,0.005,92546.0,92545.0,0.50849]
[1765339537584,0.005,92546.0,92545.0,0.49764]
[1765339538775,0.005,92546.0,92545.0,0.13764]
[1765339541084,0.06184,92546.0,92545.0,0.05764]
[1765339544392,0.06184,92546.0,92545.0,0.001]
[1765339544775,0.08450336,92546.0,92545.0,0.001]
[1765339551976,0.05684,92537.0,92536.0,0.00016214]
[1765339552180,0.07954802,92537.0,92536.0,0.00016214]
[1765339552381,0.0676456,92537.0,92536.0,0.00016214]
[1765339552582,0.09035367,92537.0,92536.0,0.00016214]
[1765339552895,0.0676456,92537.0,92536.0,0.00016214]
[1765339553083,0.09136038,92537.0,92536.0,0.00016214]
[1765339554191,0.09036038,92537.0,92536.0,0.00016214]
[1765339554392,0.09436038,92537.0,92536.0,0.00116214]
[1765339554591,0.09836038,92537.0,92536.0,0.00216214]
[1765339556581,0.09436038,92537.0,92536.0,0.00116214]
[1765339556786,0.09836038,92537.0,92536.0,0.00216214]
[1765339558490,0.09836038,92537.0,92536.0,0.06022214]
[1765339559883,0.09836038,92537.0,92536.0,0.03191214]
[1765339560198,0.09436038,92537.0,92536.0,0.00116214]
[1765339560488,0.09836038,92537.0,92536.0,0.00216214]
[1765339560691,0.09836038,92537.0,92536.0,0.05922214]
[1765339560881,0.09736038,92537.0,92536.0,0.05922214]
[1765339561798,0.09736038,92537.0,92536.0,0.03091214]
[1765339562297,0.09436038,92537.0,92536.0,0.00116214]
[1765339562490,0.09836038,92537.0,92536.0,0.00216214]
[1765339562891,0.09436038,92537.0,92536.0,0.00116214]
[1765339563193,0.09836038,92537.0,92536.0,0.00116214]
[1765339563490,0.09436038,92537.0,92536.0,0.00116214]
[1765339563793,0.09836038,92537.0,92536.0,0.00216214]
[1765339566590,0.09036038,92537.0,92536.0,0.00016214]
[1765339566790,0.09836038,92537.0,92536.0,0.00216214]
[1765339568098,0.09836038,92537.0,92536.0,0.06022214]
[1765339570097,0.09836038,92537.0,92536.0,0.03191214]
[1765339570297,0.09836038,92537.0,92536.0,0.00216214]
[1765339570701,0.09836038,92537.0,92536.0,0.03132214]
[1765339572493,0.09836038,92537.0,92536.0,0.05883214]
[1765339575099,0.09836038,92537.0,92536.0,0.03132214]
[1765339575301,0.09836038,92537.0,92536.0,0.05883214]
[1765339579205,0.09836038,92537.0,92536.0,0.03132214]
[1765339579502,0.09836038,92537.0,92536.0,0.05883214]
[1765339582806,0.09836038,92537.0,92536.0,0.00216214]
[1765339585407,0.0669478,92518.0,92517.0,0.11283643]
[1765339585712,0.08966258,92518.0,92517.0,0.05469]
[1765339587208,0.09066258,92518.0,92517.0,0.05469]
[1765339588411,0.0108088,92509.0,92508.0,0.00016214]
[1765339588613,0.0669488,92509.0,92508.0,0.05485214]
[1765339588804,0.08966358,92509.0,92508.0,0.05485214]
[1765339589206,0.0669488,92509.0,92508.0,0.05485214]
[1765339589420,0.09009531,92509.0,92508.0,0.05485214]
[1765339589913,0.07928651,92509.0,92508.0,0.06566114]
[1765339590103,0.08028651,92509.0,92508.0,0.06866114]
[1765339590416,0.05814,92509.0,92508.0,0.07266114]
[1765339590914,0.006,92509.0,92508.0,0.06666114]
[1765339591118,0.006,92509.0,92508.0,0.08284114]
[1765339591508,0.06985,92520.0,92519.0,0.05469]
[1765339591817,0.09298588,92520.0,92519.0,0.05469]
[1765339593807,0.09698588,92520.0,92519.0,0.05469]
[1765339594213,0.06985,92520.0,92519.0,0.05469]
[1765339594417,0.09897839,92520.0,92519.0,0.05569]
[1765339594816,0.09597839,92520.0,92519.0,0.05569]
[1765339595012,0.09997839,92520.0,92519.0,0.05569]
[1765339599822,0.07174839,92520.0,92519.0,0.05569]
[1765339600023,0.09997839,92520.0,92519.0,0.05569]
[1765339601025,0.09597839,92520.0,92519.0,0.05569]
[1765339601218,0.09897839,92520.0,92519.0,0.05569]
[1765339602516,0.09897839,92520.0,92519.0,0.001]
[1765339602722,0.09897839,92520.0,92519.0,0.02841]
[1765339602917,0.09597839,92520.0,92519.0,0.02741]
[1765339603117,0.09697839,92520.0,92519.0,0.001]
[1765339603317,0.09997839,92520.0,92519.0,0.001]
[1765339603723,0.05614,92509.0,92508.0,0.05485214]
[1765339604024,0.05614,92509.0,92508.0,0.02757214]
[1765339604220,0.05614,92509.0,92508.0,0.05485214]
[1765339604817,0.07927266,92509.0,92508.0,0.05485214]
[1765339605017,0.08127266,92509.0,92508.0,0.05485214]
[1765339606418,0.08127266,92509.0,92508.0,0.05585214]
[1765339606619,0.08327266,92509.0,92508.0,0.05585214]
[1765339608715,0.06014,92509.0,92508.0,0.05585214]
[1765339609228,0.08327709,92509.0,92508.0,0.05585214]
[1765339609828,0.08127709,92509.0,92508.0,0.05485214]
[1765339610125,0.08127709,92509.0,92508.0,0.05585214]
[1765339610328,0.08327709,92509.0,92508.0,0.05585214]
[1765339621937,0.08327709,92509.0,92508.0,0.02857214]
[1765339622141,0.08327709,92509.0,92508.0,0.00116214]
[1765339622334,0.08327709,92509.0,92508.0,0.02934214]
[1765339622734,0.08327709,92509.0,92508.0,0.05887214]
[1765339623335,0.08327709,92509.0,92508.0,0.02934214]
[1765339623537,0.01715,92496.0,92495.0,0.05814643]
[1765339623736,0.05685,92491.0,92490.0,0.0010812]
[1765339623936,0.07998709,92491.0,92490.0,0.0010812]
[1765339624142,0.09079799,92491.0,92490.0,0.0010812]
[1765339625541,0.07998709,92491.0,92481.0,0.00016214]
[1765339625746,0.05685,92473.0,92472.0,0.05771]
[1765339626054,0.05685,92473.0,92472.0,0.07771]
[1765339626237,0.05685,92473.0,92472.0,0.02818]
[1765339626436,0.07998573,92473.0,92472.0,0.02818]
[1765339627246,0.08098573,92473.0,92472.0,0.03618]
[1765339627451,0.08598573,92473.0,92472.0,0.03718]
[1765339627745,0.08898573,92473.0,92472.0,0.002]
[1765339628166,0.08898573,92473.0,92465.0,0.0010815]
[1765339628341,0.07362,92450.0,92449.0,0.02414043]
[1765339628535,0.07362,92450.0,92449.0,0.48414043]
[1765339629544,0.01639,92450.0,92449.0,0.48514043]
[1765339629853,0.04543,92455.0,92454.0,0.0348353]
[1765339630050,0.07362,92455.0,92454.0,0.5248353]
[1765339630551,0.01639,92455.0,92454.0,0.5248353]
[1765339630848,0.04543,92455.0,92454.0,0.5248353]
[1765339631050,0.04743,92455.0,92454.0,0.5258353]
[1765339631250,0.01839,92455.0,92454.0,0.5258353]
[1765339632451,0.01939,92455.0,92454.0,0.5258353]
[1765339632950,0.01839,92455.0,92454.0,0.5258353]
[1765339633143,0.01939,92455.0,92454.0,0.5258353]
[1765339633345,0.01839,92455.0,92454.0,0.5258353]
[1765339633953,0.04743,92455.0,92454.0,0.5258353]
[1765339634853,0.04643,92455.0,92454.0,0.5248353]
[1765339635156,0.04843,92455.0,92454.0,0.5258353]
[1765339635550,0.04743,92455.0,92454.0,0.5258353]
[1765339635751,0.04843,92455.0,92454.0,0.5258353]
[1765339636150,0.04743,92455.0,92454.0,0.5258353]
[1765339636347,0.01739,92455.0,92454.0,0.5248353]
[1765339636653,0.003,92455.0,92454.0,0.5258353]
[1765339636845,0.004,92455.0,92454.0,0.5258353]
[1765339637946,0.002,92455.0,92454.0,0.5248353]
[1765339638144,0.004,92455.0,92454.0,0.5258353]
[1765339638348,0.002,92455.0,92454.0,0.5258353]
[1765339638555,0.003,92455.0,92454.0,0.5258353]
[1765339638954,0.002,92455.0,92454.0,0.5258353]
[1765339639550,0.00016225,92459.0,92458.0,0.0348348]
[1765339639759,0.00016225,92459.0,92458.0,0.3948348]
[1765339641162,0.00116225,92459.0,92458.0,0.3948348]
[1765339641861,0.00216225,92459.0,92458.0,0.3948348]
[1765339642267,0.05839225,92459.0,92458.0,0.3968348]
[1765339642873,0.05839225,92459.0,92458.0,0.3948348]
[1765339643167,0.05939225,92459.0,92458.0,0.3948348]
[1765339643365,0.05939225,92459.0,92458.0,0.38402]
[1765339643562,0.05939225,92459.0,92458.0,0.3948348]
[1765339644263,0.06039225,92459.0,92458.0,0.3958348]
[1765339644967,0.05939225,92459.0,92458.0,0.3958348]
[1765339645168,0.06239225,92459.0,92458.0,0.3958348]
[1765339645968,0.00616225,92459.0,92458.0,0.3958348]
[1765339647471,0.00516225,92459.0,92458.0,0.3958348]
[1765339648168,0.00216225,92459.0,92458.0,0.3958348]
[1765339648374,0.00416225,92459.0,92458.0,0.3958348]
[1765339648869,0.00316225,92459.0,92458.0,0.3958348]
[1765339649971,0.00116225,92459.0,92458.0,0.3948348]
[1765339650170,0.00316225,92459.0,92458.0,0.3958348]
[1765339650472,0.00316225,92459.0,92458.0,0.4758348]
[1765339651474,0.01724,92475.0,92474.0,0.0348329]
[1765339651677,0.0390124,92479.0,92478.0,0.0348325]
[1765339651867,0.09137463,92479.0,92478.0,0.0348325]
[1765339653570,0.09137463,92479.0,92478.0,0.02402]
[1765339653761,0.09337463,92479.0,92478.0,0.02502]
[1765339654466,0.09537463,92479.0,92478.0,0.02502]
[1765339654775,0.09337463,92479.0,92478.0,0.02502]
[1765339654976,0.09537463,92479.0,92478.0,0.02502]
[1765339655171,0.09337463,92479.0,92478.0,0.02402]
[1765339655376,0.09737463,92479.0,92478.0,0.02502]
[1765339655976,0.09537463,92479.0,92478.0,0.02502]
[1765339656178,0.09837463,92479.0,92478.0,0.02602]
[1765339657877,0.09837463,92479.0,92478.0,0.02502]
[1765339658082,0.09837463,92479.0,92478.0,0.02602]
[1765339658291,0.09537463,92479.0,92478.0,0.02502]
[1765339658469,0.09937463,92479.0,92478.0,0.02602]
[1765339659382,0.09937463,92479.0,92478.0,0.02502]
[1765339659582,0.09937463,92479.0,92478.0,0.02602]
[1765339659774,0.09937463,92479.0,92478.0,0.01401]
[1765339659974,0.09937463,92479.0,92478.0,0.002]
[1765339660779,0.09937463,92479.0,92478.0,0.01401]
[1765339660979,0.09937463,92479.0,92478.0,0.002]
[1765339661567,0.09937463,92479.0,92478.0,0.01401]
[1765339661774,0.09937463,92479.0,92478.0,0.02602]
[1765339668688,0.09937463,92479.0,92478.0,0.002]
[1765339675198,0.0669234,92470.0,92469.0,0.01217225]
[1765339675393,0.09011563,92470.0,92469.0,0.00016225]
[1765339676603,0.09211563,92470.0,92469.0,0.00016225]
[1765339677108,0.09411563,92470.0,92469.0,0.00116225]
[1765339681809,0.0574,92455.0,92454.0,0.0371552]
[1765339682010,0.0574,92455.0,92454.0,0.1271552]
[1765339683210,0.0594,92455.0,92454.0,0.1341552]
[1765339685014,0.002,92455.0,92454.0,0.1341552]
[1765339685517,0.002,92455.0,92454.0,0.5541552]
[1765339686212,0.002,92455.0,92454.0,0.61230163]
[1765339687112,0.002,92455.0,92454.0,0.5541552]
[1765339687710,0.00016225,92464.0,92463.0,0.0371542]
[1765339687915,0.00016225,92464.0,92463.0,0.5471542]
[1765339689219,0.00116225,92464.0,92463.0,0.5471542]
[1765339689712,0.0275527,92476.0,92475.0,0.0371528]
[1765339690017,0.07909547,92476.0,92475.0,0.0971528]
[1765339690212,0.10668547,92476.0,92475.0,0.0971528]
[1765339691018,0.10868547,92476.0,92475.0,0.0971528]
[1765339692219,0.10968547,92476.0,92475.0,0.0971528]
[1765339692420,0.10868547,92476.0,92475.0,0.0971528]
[1765339692818,0.10868547,92476.0,92475.0,0.0371528]
[1765339693821,0.10868547,92476.0,92475.0,0.02634]
[1765339694917,0.04190277,92476.0,92475.0,0.02634]
[1765339695320,0.02516277,92476.0,92475.0,0.51634]
[1765339695522,0.002,92476.0,92475.0,0.51634]
[1765339695915,0.0839218,92484.0,92483.0,0.02634]
[1765339696110,0.10708411,92484.0,92483.0,0.02634]
[1765339697222,0.10808411,92484.0,92483.0,0.02634]
[1765339698617,0.11008411,92484.0,92483.0,0.001]
[1765339699311,0.11008411,92484.0,92483.0,0.01417]
[1765339699519,0.11008411,92484.0,92483.0,0.02734]
[1765339701724,0.11008411,92484.0,92483.0,0.001]
[1765339703123,0.11008411,92484.0,92483.0,0.02734]
[1765339709927,0.11008411,92484.0,92483.0,0.001]
[1765339718729,0.16846552,92484.0,92483.0,0.001]
[1765339719335,0.11008411,92484.0,92483.0,0.001]
[1765339725841,0.11008411,92484.0,92483.0,0.02734]
[1765339726539,0.11008411,92484.0,92483.0,0.5081519]
[1765339726540,0.02616231,92484.0,92483.0,0.5081519]
[1765339726743,0.02616231,92484.0,92483.0,0.9081519]
[1765339727227,0.003,92484.0,92483.0,0.9081519]
[1765339727428,0.003,92484.0,92483.0,0.96642905]
[1765339728252,0.003,92484.0,92483.0,0.9081519]
[1765339728829,0.003,92484.0,92483.0,0.5081519]
[1765339729030,0.003,92484.0,92483.0,0.9081519]
[1765339730231,0.003,92484.0,92483.0,0.9663482]
[1765339732243,0.003,92484.0,92483.0,0.9081519]
[1765339733148,0.003,92484.0,92483.0,0.9663482]
[1765339733350,0.003,92484.0,92483.0,0.9081519]
[1765339735538,0.02082,92484.0,92483.0,0.9081519]
[1765339738749,0.003,92484.0,92483.0,0.9081519]
[1765339741448,0.02082,92484.0,92483.0,0.9081519]
[1765339745754,0.05008,92484.0,92483.0,0.9081519]
[1765339745955,0.07997,92484.0,92483.0,0.9081519]
[1765339746348,0.02082,92484.0,92483.0,0.9081519]
[1765339746543,0.07831,92484.0,92483.0,0.5781519]
[1765339746756,0.07831,92484.0,92483.0,0.1781519]
[1765339751956,0.07831,92484.0,92483.0,0.0981519]
[1765339752647,0.07831,92484.0,92483.0,0.08734]
[1765339752849,0.07831,92484.0,92483.0,0.001]
[1765339753047,0.07831,92484.0,92483.0,0.01417]
[1765339753451,0.10149656,92484.0,92483.0,0.01417]
[1765339754759,0.10149656,92484.0,92483.0,0.02734]
[1765339755861,0.10149656,92484.0,92483.0,0.001]
[1765339758358,0.10149656,92484.0,92483.0,0.01417]
[1765339758557,0.10149656,92484.0,92483.0,0.001]
[1765339759066,0.10149656,92484.0,92483.0,0.02734]
[1765339759450,0.04400656,92484.0,92483.0,0.02734]
[1765339759653,0.003,92484.0,92483.0,0.46734]
[1765339760261,0.06049,92484.0,92483.0,0.46734]
[1765339761466,0.03092,92484.0,92483.0,0.46734]
[1765339761769,0.06049,92484.0,92483.0,0.46734]
[1765339761956,0.06049,92484.0,92483.0,0.22734]
[1765339762558,0.06027315,92484.0,92483.0,0.02734]
[1765339765658,0.06027315,92484.0,92483.0,0.1755363]
[1765339765659,0.00278315,92484.0,92483.0,0.1755363]
[1765339766260,0.00278315,92484.0,92483.0,0.11734]
[1765339768068,0.00278315,92484.0,92483.0,0.54734]
[1765339768765,0.01714,92495.0,92494.0,0.0371506]
[1765339768956,0.01714,92495.0,92494.0,0.1271506]
[1765339769157,0.04034029,92495.0,92494.0,0.1271506]
[1765339769968,0.04034029,92495.0,92494.0,0.1281506]
[1765339770166,0.07218029,92495.0,92494.0,0.1281506]
[1765339770360,0.10107029,92495.0,92494.0,0.1281506]
[1765339770762,0.10407029,92495.0,92494.0,0.1281506]
[1765339771275,0.10107029,92495.0,92494.0,0.1281506]
[1765339771462,0.09707029,92495.0,92494.0,0.13897037]
[1765339771662,0.09707029,92495.0,92494.0,0.13997037]
[1765339772269,0.01714,92495.0,92494.0,0.13997037]
[1765339772476,0.01714,92495.0,92494.0,0.49997037]
[1765339772864,0.04498,92495.0,92494.0,0.49997037]
[1765339775469,0.04498,92495.0,92494.0,0.22997037]
[1765339775674,0.07387,92495.0,92494.0,0.22997037]
[1765339776474,0.01714,92495.0,92494.0,0.51997037]
[1765339778378,0.04454,92500.0,92499.0,0.03715]
[1765339778577,0.06772486,92500.0,92499.0,0.41715]
[1765339778780,0.07343,92500.0,92499.0,0.41715]
[1765339779778,0.00016225,92504.0,92503.0,0.0108095]
[1765339779973,0.00016225,92504.0,92503.0,0.0371495]
[1765339780174,0.00016225,92504.0,92503.0,0.1171495]
[1765339780681,0.00016225,92504.0,92503.0,0.5271495]
[1765339781184,0.00116225,92504.0,92503.0,0.5271495]
[1765339781575,0.00016225,92504.0,92503.0,0.5281495]
[1765339781780,0.00016225,92504.0,92503.0,0.5301495]
[1765339782078,0.01778,92510.0,92509.0,0.02634]
[1765339782281,0.02892091,92515.0,92514.0,0.0371483]
[1765339782487,0.02892091,92515.0,92514.0,0.1171483]
[1765339783885,0.05781091,92515.0,92514.0,0.1171483]
[1765339784875,0.05781091,92515.0,92514.0,0.1181483]
[1765339785275,0.05781091,92515.0,92514.0,0.1191483]
[1765339786181,0.00108091,92515.0,92514.0,0.4791483]
[1765339786577,0.02892091,92515.0,92514.0,0.4791483]
[1765339786775,0.05781091,92515.0,92514.0,0.4791483]
[1765339787183,0.05781091,92515.0,92514.0,0.0791483]
[1765339788088,0.05781091,92515.0,92514.0,0.0781483]
[1765339788291,0.05881091,92515.0,92514.0,0.0781483]
[1765339788499,0.05881091,92515.0,92514.0,0.0771483]
[1765339788997,0.05881091,92515.0,92514.0,0.3871483]
[1765339789893,0.05781091,92515.0,92514.0,0.3871483]
[1765339790100,0.05881091,92515.0,92514.0,0.3871483]
[1765339790699,0.05781091,92515.0,92514.0,0.3871483]
[1765339790902,0.05881091,92515.0,92514.0,0.4371483]
[1765339791900,0.05781091,92515.0,92514.0,0.4371483]
[1765339792094,0.05881091,92515.0,92514.0,0.4371483]
[1765339792297,0.05881091,92515.0,92514.0,0.4381483]
[1765339793405,0.05781091,92515.0,92514.0,0.4381483]
[1765339793601,0.05881091,92515.0,92514.0,0.4381483]
[1765339793994,0.05881091,92515.0,92514.0,0.0781483]
[1765339794205,0.05881091,92515.0,92514.0,0.0381483]
[1765339795892,0.05881091,92515.0,92514.0,0.1181483]
[1765339796098,0.05881091,92515.0,92514.0,0.0381483]
[1765339800507,0.05881091,92515.0,92514.0,0.02734]
[1765339800708,0.08152971,92515.0,92514.0,0.02734]
[1765339801206,0.08152971,92515.0,92514.0,0.001]
[1765339802398,0.05854,92506.0,92505.0,0.00016216]
[1765339802905,0.06913221,92506.0,92505.0,0.00016216]
[1765339803413,0.09186043,92506.0,92505.0,0.00016216]
[1765339803607,0.09286043,92506.0,92505.0,0.01855216]
[1765339803804,0.09386043,92506.0,92505.0,0.03794216]
[1765339804413,0.09286043,92506.0,92505.0,0.01855216]
[1765339804710,0.09486043,92506.0,92505.0,0.01855216]
[1765339805414,0.09386043,92506.0,92505.0,0.00016216]
[1765339805612,0.09686043,92506.0,92505.0,0.00116216]
[1765339806005,0.09486043,92506.0,92505.0,0.00116216]